fUSD/lending_fUSD_20250110
["ID","MTS","AMOUNT","RATE_DAILY","PERIOD"]
[348462371,1736538648678,-500.0,0.00011642,2]
[348462372,1736538648689,-500.0,0.00011642,2]
[348462373,1736538648699,-500.0,0.00011642,2]
[348462374,1736538648710,-500.0,0.00011642,2]
[348462375,1736538648719,-500.0,0.00011642,2]
[348462376,1736538648730,-500.0,0.00011642,2]
[348462377,1736538648741,-541.44,0.00011642,2]
[348462378,1736538648751,-500.0,0.00011642,2]
[348462379,1736538648760,-500.0,0.00011642,2]
[348462380,1736538648770,-500.0,0.00011642,2]
[348462381,1736538648780,-500.0,0.00011642,2]
[348462382,1736538648790,-818.14,0.00011642,2]
[348462383,1736538648800,-500.0,0.00011642,2]
[348462384,1736538648809,-500.0,0.00011642,2]
[348462385,1736538648818,-500.0,0.00011642,2]
[348462386,1736538648831,-500.0,0.00011642,2]
[348462387,1736538648840,-500.0,0.00011642,2]
[348462388,1736538648850,-732.28,0.00011642,2]
[348462389,1736538648860,-500.0,0.00011642,2]
[348462390,1736538648869,-500.0,0.00011642,2]
[348462391,1736538648879,-500.0,0.00011642,2]
[348462392,1736538648889,-500.0,0.00011642,2]
[348462393,1736538648899,-600.83,0.00011642,2]
[348462394,1736538648909,-500.0,0.00011642,2]
[348462395,1736538648919,-500.0,0.00011642,2]
[348462396,1736538648929,-500.0,0.00011642,2]
[348462397,1736538648939,-2032.18,0.00011642,2]
[348462398,1736538648949,-500.0,0.00011643,2]
[348462399,1736538648959,-500.0,0.00011643,2]
[348462400,1736538648969,-500.0,0.00011643,2]
[348462401,1736538648978,-500.0,0.00011643,2]
[348462402,1736538648987,-500.0,0.00011643,2]
[348462403,1736538648996,-500.0,0.00011643,2]
[348462404,1736538649007,-500.0,0.00011643,2]
[348462405,1736538649016,-507.16,0.00011643,2]
[348462406,1736538649026,-500.0,0.00011643,2]
[348462407,1736538649035,-1250.04,0.00011643,2]
[348462408,1736538649045,-500.0,0.00011643,2]
[348462409,1736538649057,-1754.31,0.00011643,2]
[348462410,1736538649067,-500.0,0.00011643,2]
[348462411,1736538649083,-500.0,0.00011643,2]
[348462412,1736538649094,-698.78,0.00011643,2]
[348462413,1736538649104,-500.0,0.00011643,2]
[348462414,1736538649116,-500.0,0.00011643,2]
[348462415,1736538649127,-500.0,0.00011643,2]
[348462416,1736538649138,-500.0,0.00011643,2]
[348462417,1736538649150,-853.68,0.00011643,2]
[348462418,1736538649163,-500.0,0.00011643,2]
[348462419,1736538649174,-780.35,0.00011643,2]
[348462420,1736538649184,-151.39486047,0.00011678,2]
[348462421,1736538649195,-191.245,0.0001168,2]
[348462422,1736538649205,-2500.0,0.000117,4]
[348462423,1736538649215,-202.66699719,0.00011724,2]
[348462424,1736538649227,-151.39486047,0.0001178,2]
[348462425,1736538649237,-3274.0,0.000118,4]
[348462426,1736538649247,-202.66699719,0.00011841,2]
[348462427,1736538649258,-151.39486047,0.00011883,2]
[348462428,1736538649268,-777.34088942,0.00011913,2]
[348462429,1736538649279,-500.0,0.00011913,2]
[348462430,1736538649289,-500.0,0.00011913,2]
[348462431,1736538649299,-500.0,0.00011913,2]
[348462432,1736538649309,-500.0,0.00011913,2]
[348462433,1736538649319,-480.93313836,0.00011913,2]
[348462434,1736538649329,-500.0,0.00011913,2]
[348462435,1736538649340,-364.12682101,0.00011913,2]
[348462436,1736538649351,-500.0,0.00011913,2]
[348462437,1736538649361,-718.31,0.00011913,2]
[348462438,1736538649371,-1431.64,0.00011913,2]
[348462439,1736538649381,-1371.99,0.00011913,2]
[348462440,1736538649391,-500.0,0.00011913,2]
[348462441,1736538649402,-731.79,0.00011913,2]
[348462442,1736538649412,-1027.4,0.00011913,2]
[348462443,1736538649422,-690.57,0.00011913,2]
[348462444,1736538649432,-661.8,0.00011913,2]
[348462445,1736538649442,-795.73,0.00011913,2]
[348462446,1736538649453,-1138.48,0.00011913,2]
[348462447,1736538649463,-524.59,0.00011913,2]
[348462448,1736538649473,-581.97,0.00011913,2]
[348462449,1736538649483,-551.2,0.00011913,2]
[348462450,1736538649492,-1882.51,0.00011913,2]
[348462451,1736538649503,-500.0,0.00011913,2]
[348462452,1736538649513,-500.0,0.00011913,2]
[348462453,1736538649523,-1322.02,0.00011913,2]
[348462454,1736538649533,-657.64,0.00011913,2]
[348462455,1736538649544,-712.52,0.00011914,2]
[348462456,1736538649554,-851.73,0.00011914,2]
[348462457,1736538649564,-500.0,0.00011914,2]
[348462458,1736538649574,-208.4247689,0.00011914,2]
[348462459,1736538649584,-500.0,0.00011914,2]
[348462460,1736538649594,-1369.29,0.00011914,2]
[348462461,1736538649604,-500.0,0.00011914,2]
[348462462,1736538649614,-1243.02,0.00011914,2]
[348462463,1736538649624,-3152.19,0.00011914,2]
[348462464,1736538649634,-781.57,0.00011914,2]
[348462465,1736538649644,-2171.70738026,0.00011914,2]
[348462466,1736538649654,-939.99,0.00011914,2]
[348462467,1736538649664,-500.0,0.00011914,2]
[348462468,1736538649674,-500.0,0.00011914,2]
[348462469,1736538649684,-500.0,0.00011914,2]
[348462470,1736538649694,-585.9,0.00011914,2]
[348462471,1736538649704,-1923.3,0.00011914,2]
[348462472,1736538649714,-1370.12,0.00011914,2]
[348462473,1736538649724,-1227.04,0.00011914,2]
[348462474,1736538649734,-1916.08,0.00011914,2]
[348462475,1736538649744,-1658.46,0.00011914,2]
[348462476,1736538649753,-546.18,0.00011914,2]
[348462477,1736538649763,-500.0,0.00011914,2]
[348462478,1736538649773,-588.03,0.00011914,2]
[348462479,1736538649783,-500.0,0.00011914,2]
[348462480,1736538649792,-2252.76,0.00011914,2]
[348462481,1736538649802,-1172.88,0.00011914,2]
[348462482,1736538649812,-789.38,0.00011915,2]
[348462483,1736538649822,-817.86,0.00011915,2]
[348462484,1736538649831,-1079.5,0.00011915,2]
[348462485,1736538649841,-1737.63,0.00011915,2]
[348462486,1736538649851,-1025.61,0.00011915,2]
[348462487,1736538649860,-500.0,0.00011915,2]
[348462488,1736538649870,-544.11,0.00011915,2]
[348462489,1736538649879,-1582.77,0.00011915,2]
[348462490,1736538649901,-500.0,0.00011915,2]
[348462491,1736538649911,-500.0,0.00011915,2]
[348462492,1736538649922,-500.0,0.00011915,2]
[348462493,1736538649932,-531.44,0.00011915,2]
[348462494,1736538649944,-689.98,0.00011915,2]
[348462495,1736538649957,-518.31,0.00011915,2]
[348462496,1736538649971,-500.0,0.00011915,2]
[348462497,1736538649982,-815.88,0.00011916,2]
[348462498,1736538649993,-1244.23,0.00011916,2]
[348462499,1736538650003,-529.86,0.00011916,2]
[348462500,1736538650014,-500.0,0.00011916,2]
[348462501,1736538650024,-500.0,0.00011916,2]
[348462502,1736538650035,-500.0,0.00011916,2]
[348462503,1736538650045,-500.0,0.00011916,2]
[348462504,1736538650056,-358.851055,0.00011916,2]
[348462505,1736538650067,-500.0,0.00011916,2]
[348462506,1736538650080,-500.0,0.00011916,2]
[348462507,1736538650092,-1378.96,0.00011916,2]
[348462508,1736538650102,-500.0,0.00011916,2]
[348462509,1736538650113,-396.380051,0.00011916,2]
[348462510,1736538650125,-500.0,0.00011916,2]
[348462511,1736538650136,-500.0,0.00011916,2]
[348462512,1736538650148,-500.0,0.00011916,2]
[348462513,1736538650160,-500.0,0.00011916,2]
[348462514,1736538650171,-500.0,0.00011916,2]
[348462515,1736538650182,-500.0,0.00011916,2]
[348462516,1736538650192,-500.0,0.00011916,2]
[348462517,1736538650202,-500.0,0.00011916,2]
[348462518,1736538650214,-1422.71,0.00011916,2]
[348462519,1736538650229,-500.0,0.00011916,2]
[348462520,1736538650240,-500.0,0.00011916,2]
[348462521,1736538650251,-500.0,0.00011916,2]
[348462522,1736538650261,-500.0,0.00011916,2]
[348462523,1736538650271,-500.0,0.00011916,2]
[348462524,1736538650282,-500.0,0.00011916,2]
[348462525,1736538650292,-500.0,0.00011916,2]
[348462526,1736538650303,-568.99,0.00011916,2]
[348462527,1736538650313,-500.0,0.00011916,2]
[348462528,1736538650324,-500.0,0.00011916,2]
[348462529,1736538650334,-500.0,0.00011916,2]
[348462530,1736538650344,-500.0,0.00011916,2]
[348462531,1736538650354,-500.0,0.00011916,2]
[348462532,1736538650364,-500.0,0.00011916,2]
[348462533,1736538650375,-500.0,0.00011916,2]
[348462534,1736538650384,-500.0,0.00011916,2]
[348462535,1736538650400,-500.0,0.00011916,2]
[348462536,1736538650412,-500.0,0.00011916,2]
[348462537,1736538650423,-500.0,0.00011916,2]
[348462538,1736538650434,-500.0,0.00011916,2]
[348462539,1736538650446,-500.0,0.00011916,2]
[348462540,1736538650457,-642.84156063,0.00011916,2]
[348462541,1736538650468,-500.0,0.00011916,2]
[348462542,1736538650479,-500.0,0.00011916,2]
[348462543,1736538650489,-500.0,0.00011916,2]
[348462544,1736538650500,-500.0,0.00011916,2]
[348462545,1736538650511,-500.0,0.00011916,2]
[348462546,1736538650523,-541.44,0.00011916,2]
[348462547,1736538650533,-500.0,0.00011916,2]
[348462548,1736538650544,-500.0,0.00011916,2]
[348462549,1736538650555,-500.0,0.00011916,2]
[348462550,1736538650566,-500.0,0.00011916,2]
[348462551,1736538650579,-818.14,0.00011916,2]
[348462552,1736538650591,-500.0,0.00011916,2]
[348462553,1736538650602,-500.0,0.00011916,2]
[348462554,1736538650613,-500.0,0.00011916,2]
[348462555,1736538650624,-500.0,0.00011916,2]
[348462556,1736538650636,-500.0,0.00011916,2]
[348462557,1736538650647,-732.28,0.00011916,2]
[348462558,1736538650658,-500.0,0.00011916,2]
[348462559,1736538650670,-542.72,0.00011916,2]
[348462560,1736538650681,-500.0,0.00011916,2]
[348462561,1736538650692,-500.0,0.00011916,2]
[348462562,1736538650703,-600.83,0.00011916,2]
[348462563,1736538650714,-500.0,0.00011916,2]
[348462564,1736538650725,-500.0,0.00011916,2]
[348462565,1736538650735,-500.0,0.00011916,2]
[348462566,1736538650746,-2032.18,0.00011916,2]
[348462567,1736538650756,-500.0,0.00011917,2]
[348462568,1736538650766,-500.0,0.00011917,2]
[348462569,1736538650777,-500.0,0.00011917,2]
[348462570,1736538650787,-500.0,0.00011917,2]
[348462571,1736538650797,-500.0,0.00011917,2]
[348462572,1736538650807,-500.0,0.00011917,2]
[348462573,1736538650818,-500.0,0.00011917,2]
[348462574,1736538650829,-507.16,0.00011917,2]
[348462575,1736538650840,-500.0,0.00011917,2]
[348462576,1736538650851,-1250.04,0.00011917,2]
[348462577,1736538650862,-500.0,0.00011917,2]
[348462578,1736538650872,-1754.31,0.00011917,2]
[348462579,1736538650883,-500.0,0.00011917,2]
[348462580,1736538650894,-500.0,0.00011917,2]
[348462581,1736538650910,-698.78,0.00011917,2]
[348462582,1736538650921,-500.0,0.00011917,2]
[348462583,1736538650932,-500.0,0.00011917,2]
[348462584,1736538650943,-500.0,0.00011917,2]
[348462585,1736538650955,-853.68,0.00011917,2]
[348462586,1736538650966,-500.0,0.00011917,2]
[348462587,1736538650977,-780.35,0.00011917,2]
[348462588,1736538650988,-202.66699719,0.00011959,2]
[348462589,1736538650999,-1308.0,0.00011961,2]
[348462590,1736538651010,-269.13106976,0.00011983,2]
[348462591,1736538651021,-151.39486047,0.00011986,2]
[348462592,1736538651032,-1000.0,0.00012,2]
[348462593,1736538651045,-1000.0,0.00012,2]
[348462594,1736538651056,-1000.0,0.00012,2]
[348462595,1736538651067,-1000.0,0.00012,2]
[348462596,1736538651081,-1002.0,0.00012,3]
[348462597,1736538651094,-1000.0,0.00012,3]
[348462598,1736538651106,-1000.0,0.00012,3]
[348462599,1736538651117,-3722.0,0.00012,2]
[348462600,1736538651129,-61478.22669635,0.00012,2]
[348462601,1736538651140,-269.13106973,0.00012019,2]
[348462602,1736538651152,-150.0,0.00012026,2]
[348462603,1736538651164,-150.0,0.00012027,2]
[348462604,1736538651175,-150.0,0.00012029,2]
[348462605,1736538651186,-150.0,0.00012036,2]
[348462606,1736538651197,-150.0,0.00012036,2]
[348462607,1736538651208,-150.0,0.00012037,2]
[348462608,1736538651218,-150.0,0.00012037,2]
[348462609,1736538651229,-150.0,0.00012042,2]
[348462610,1736538651241,-150.0,0.00012042,2]
[348462611,1736538651252,-1500.0,0.00012043,2]
[348462612,1736538651263,-1500.0,0.00012043,2]
[348462613,1736538651273,-150.0,0.00012045,2]
[348462614,1736538651284,-1500.0,0.00012045,2]
[348462615,1736538651294,-150.0,0.0001205,2]
[348462616,1736538651305,-150.0,0.00012051,2]
[348462617,1736538651315,-150.0,0.00012053,2]
[348462618,1736538651327,-710.4185324,0.00012053,2]
[348462619,1736538651338,-200.0,0.00012055,2]
[348462620,1736538651348,-150.0,0.00012055,2]
[348462621,1736538651358,-269.13106973,0.00012055,2]
[348462622,1736538651369,-150.0,0.00012063,2]
[348462623,1736538651380,-150.0,0.00012064,2]
[348462624,1736538651390,-150.0,0.00012064,2]
[348462625,1736538651405,-1500.0,0.00012066,2]
[348462626,1736538651416,-150.0,0.00012066,2]
[348462627,1736538651427,-150.0,0.00012066,2]
[348462628,1736538651438,-150.0,0.00012067,2]
[348462629,1736538651448,-150.0,0.00012068,2]
[348462630,1736538651458,-150.0,0.00012069,2]
[348462631,1736538651469,-150.0,0.00012071,2]
[348462632,1736538651479,-162.5209134,0.00012075,5]
[348462633,1736538651490,-1967.07,0.00012075,5]
[348462634,1736538651500,-152.71,0.00012075,5]
[348462635,1736538651511,-2029.3,0.00012075,5]
[348462636,1736538651522,-150.3,0.00012075,5]
[348462637,1736538651534,-1965.42,0.00012075,5]
[348462638,1736538651843,-2002.76,0.00012075,5]
[348462639,1736538651853,-150.77,0.00012075,5]
[348462640,1736538651864,-2000.21,0.00012075,5]
[348462641,1736538651874,-2016.17,0.00012075,5]
[348462642,1736538651884,-151.92,0.00012075,5]
[348462643,1736538651893,-2021.93,0.00012075,5]
[348462644,1736538651903,-151.65,0.00012075,5]
[348462645,1736538651913,-2007.49,0.00012075,5]
[348462646,1736538651923,-150.85,0.00012075,5]
[348462647,1736538651934,-2000.3,0.00012075,5]
[348462648,1736538651946,-152.36,0.00012075,5]
[348462649,1736538651955,-2004.71,0.00012075,5]
[348462650,1736538651965,-1966.36,0.00012075,5]
[348462651,1736538651975,-152.29,0.00012075,5]
[348462652,1736538651985,-2022.94,0.00012075,5]
[348462653,1736538651995,-2013.86,0.00012075,5]
[348462654,1736538652005,-151.31,0.00012075,5]
[348462655,1736538652015,-2025.71,0.00012075,5]
[348462656,1736538652024,-1997.02,0.00012075,5]
[348462657,1736538652034,-1979.58,0.00012075,5]
[348462658,1736538652044,-2017.82,0.00012075,5]
[348462659,1736538652054,-2000.38,0.00012075,5]
[348462660,1736538652065,-2000.76,0.00012075,5]
[348462661,1736538652079,-1963.69,0.00012075,5]
[348462662,1736538652090,-1979.59,0.00012075,5]
[348462663,1736538652100,-2017.38,0.00012075,5]
[348462664,1736538652110,-1978.2,0.00012075,5]
[348462665,1736538652121,-1962.72,0.00012075,5]
[348462666,1736538652131,-1990.92,0.00012075,5]
[348462667,1736538652140,-1982.19,0.00012075,5]
[348462668,1736538652161,-2000.89,0.00012075,5]
[348462669,1736538652173,-2035.05,0.00012075,5]
[348462670,1736538652185,-2032.46,0.00012075,5]
[348462671,1736538652196,-202.66699719,0.00012076,2]
[348462672,1736538652206,-150.0,0.0001208,2]
[348462673,1736538652217,-1500.0,0.0001208,2]
[348462674,1736538652229,-500.0,0.00012081,2]
[348462675,1736538652240,-69521.0,0.00012082,2]
[348462676,1736538652251,-150.0,0.00012083,2]
[348462677,1736538652262,-917.30224934,0.00012084,2]
[348462678,1736538652273,-150.0,0.00012088,2]
[348462679,1736538652285,-150.0,0.00012088,2]
[348462680,1736538652295,-151.39486047,0.00012089,2]
[348462681,1736538652306,-150.37541711,0.00012091,2]
[348462682,1736538652316,-269.13106973,0.00012092,2]
[348462683,1736538652329,-150.0,0.00012092,2]
[348462684,1736538652339,-150.0,0.00012092,2]
[348462685,1736538652350,-1500.0,0.00012098,2]
[348462686,1736538652361,-433.0,0.00012098,2]
[348462687,1736538652371,-150.0,0.00012099,2]
[348462688,1736538652382,-150.0,0.00012099,2]
[348462689,1736538652393,-471779.98001738,0.000121,2]
[348462690,1736538652404,-3724.12695087,0.000121,2]
[348462691,1736538652415,-1500.0,0.000121,2]
[348462692,1736538652425,-231.0,0.000121,2]
[348462693,1736538652436,-1000.0,0.000121,2]
[348462694,1736538652448,-35992.77258074,0.000121,2]
[348462695,1736538652458,-365.0,0.000121,2]
[348462696,1736538652470,-1000.0,0.000121,2]
[348462697,1736538652480,-150.0,0.00012101,2]
[348462698,1736538652491,-150.0,0.00012102,2]
[348462699,1736538652503,-150.0,0.00012102,2]
[348462700,1736538652514,-150.0,0.00012108,2]
[348462701,1736538652523,-1500.0,0.0001211,2]
[348462702,1736538652533,-500.0,0.00012115,2]
[348462703,1736538652543,-150.0,0.00012115,2]
[348462704,1736538652554,-1171751.13523766,0.00012116,2]
[348462705,1736538652565,-218.0,0.00012116,2]
[348462706,1736538652576,-150.0,0.00012116,2]
[348462707,1736538652587,-151.0,0.00012116,2]
[348462708,1736538652598,-151.0,0.00012116,2]
[348462709,1736538652608,-150.0,0.00012117,2]
[348462710,1736538652618,-151.34616858,0.00012119,2]
[348462711,1736538652629,-150.0,0.00012124,2]
[348462712,1736538652639,-269.13106973,0.00012128,2]
[348462713,1736538652656,-150.0,0.00012128,2]
[348462714,1736538652667,-150.0,0.00012131,2]
[348462715,1736538652678,-150.0,0.00012132,2]
[348462716,1736538652689,-150.0,0.00012134,2]
[348462717,1736538652700,-487.31,0.00012134,2]
[348462718,1736538652710,-150.0,0.00012138,2]
[348462719,1736538652721,-150.0,0.0001214,2]
[348462720,1736538652733,-150.0,0.00012141,2]
[348462721,1736538652743,-292.99270296,0.00012147,2]
[348462722,1736538652754,-150.0,0.00012149,2]
[348462723,1736538652765,-150.0,0.00012149,2]
[348462724,1736538652775,-150.0,0.0001215,2]
[348462725,1736538652787,-150.0,0.00012152,2]
[348462726,1736538652797,-150.0,0.00012154,2]
[348462727,1736538652807,-150.0,0.00012156,2]
[348462728,1736538652818,-8223.48,0.00012157,2]
[348462729,1736538652829,-150.0,0.00012157,2]
[348462730,1736538652839,-150.0,0.00012162,2]
[348462731,1736538652850,-150.0,0.00012163,2]
[348462732,1736538652861,-150.0,0.00012163,2]
[348462733,1736538652871,-269.13106973,0.00012164,2]
[348462734,1736538652882,-394.745,0.00012165,2]
[348462735,1736538652893,-150.0,0.00012165,2]
[348462736,1736538652903,-150.0,0.00012166,2]
[348462737,1736538652914,-150.0,0.00012167,2]
[348462738,1736538652925,-1500.0,0.00012169,2]
[348462739,1736538652936,-1500.0,0.00012172,2]
[348462740,1736538652947,-150.0,0.00012174,2]
[348462741,1736538652958,-150.0,0.00012175,2]
[348462742,1736538652968,-150.0,0.00012177,2]
[348462743,1736538652978,-1500.0,0.00012177,2]
[348462744,1736538652989,-150.0,0.00012177,2]
[348462745,1736538653000,-150.0,0.00012178,2]
[348462746,1736538653010,-1500.0,0.00012179,2]
[348462747,1736538653022,-1500.0,0.0001218,2]
[348462748,1736538653033,-150.0,0.00012181,2]
[348462749,1736538653044,-150.0,0.00012185,2]
[348462750,1736538653055,-500.0,0.00012187,2]
[348462751,1736538653066,-500.0,0.00012187,2]
[348462752,1736538653076,-150.0,0.00012187,2]
[348462753,1736538653089,-500.0,0.00012187,2]
[348462754,1736538653099,-500.0,0.00012187,2]
[348462755,1736538653110,-500.0,0.00012187,2]
[348462756,1736538653123,-500.0,0.00012187,2]
[348462757,1736538653135,-718.31,0.00012187,2]
[348462758,1736538653146,-1431.64,0.00012187,2]
[348462759,1736538653157,-1371.99,0.00012187,2]
[348462760,1736538653167,-500.0,0.00012187,2]
[348462761,1736538653177,-731.79,0.00012187,2]
[348462762,1736538653186,-1027.4,0.00012187,2]
[348462763,1736538653196,-237.55648707,0.00012187,2]
[348462764,1736538653207,-661.8,0.00012187,2]
[348462765,1736538653218,-795.73,0.00012187,2]
[348462766,1736538653230,-1138.48,0.00012187,2]
[348462767,1736538653241,-524.59,0.00012187,2]
[348462768,1736538653251,-581.97,0.00012187,2]
[348462769,1736538653261,-551.2,0.00012187,2]
[348462770,1736538653272,-1882.51,0.00012187,2]
[348462771,1736538653282,-500.0,0.00012187,2]
[348462772,1736538653292,-500.0,0.00012187,2]
[348462773,1736538653302,-1322.02,0.00012187,2]
[348462774,1736538653313,-657.64,0.00012187,2]
[348462775,1736538653323,-150.0,0.00012188,2]
[348462776,1736538653334,-712.52,0.00012188,2]
[348462777,1736538653344,-851.73,0.00012188,2]
[348462778,1736538653355,-500.0,0.00012188,2]
[348462779,1736538653365,-500.0,0.00012188,2]
[348462780,1736538653375,-1369.29,0.00012188,2]
[348462781,1736538653385,-500.0,0.00012188,2]
[348462782,1736538653395,-1243.02,0.00012188,2]
[348462783,1736538653405,-3152.19,0.00012188,2]
[348462784,1736538653415,-781.57,0.00012188,2]
[348462785,1736538653426,-939.99,0.00012188,2]
[348462786,1736538653435,-500.0,0.00012188,2]
[348462787,1736538653445,-500.0,0.00012188,2]
[348462788,1736538653455,-500.0,0.00012188,2]
[348462789,1736538653465,-585.9,0.00012188,2]
[348462790,1736538653475,-1923.3,0.00012188,2]
[348462791,1736538653485,-1370.12,0.00012188,2]
[348462792,1736538653495,-1227.04,0.00012188,2]
[348462793,1736538653506,-1916.08,0.00012188,2]
[348462794,1736538653516,-1658.46,0.00012188,2]
[348462795,1736538653526,-546.18,0.00012188,2]
[348462796,1736538653537,-500.0,0.00012188,2]
[348462797,1736538653547,-500.0,0.00012188,2]
[348462798,1736538653558,-2252.76,0.00012188,2]
[348462799,1736538653568,-1172.88,0.00012188,2]
[348462800,1736538653584,-789.38,0.00012189,2]
[348462801,1736538653594,-817.86,0.00012189,2]
[348462802,1736538653604,-1079.5,0.00012189,2]
[348462803,1736538653614,-1737.63,0.00012189,2]
[348462804,1736538653624,-1025.61,0.00012189,2]
[348462805,1736538653635,-500.0,0.00012189,2]
[348462806,1736538653644,-544.11,0.00012189,2]
[348462807,1736538653654,-1582.77,0.00012189,2]
[348462808,1736538653664,-500.0,0.00012189,2]
[348462809,1736538653675,-500.0,0.00012189,2]
[348462810,1736538653685,-500.0,0.00012189,2]
[348462811,1736538653695,-531.44,0.00012189,2]
[348462812,1736538653706,-689.98,0.00012189,2]
[348462813,1736538653720,-518.31,0.00012189,2]
[348462814,1736538653731,-500.0,0.00012189,2]
[348462815,1736538653741,-815.88,0.0001219,2]
[348462816,1736538653751,-1244.23,0.0001219,2]
[348462817,1736538653761,-529.86,0.0001219,2]
[348462818,1736538653771,-500.0,0.0001219,2]
[348462819,1736538653782,-500.0,0.0001219,2]
[348462820,1736538653793,-500.0,0.0001219,2]
[348462821,1736538653803,-500.0,0.0001219,2]
[348462822,1736538653814,-358.851055,0.0001219,2]
[348462823,1736538653825,-500.0,0.0001219,2]
[348462824,1736538653835,-500.0,0.0001219,2]
[348462825,1736538653846,-1378.96,0.0001219,2]
[348462826,1736538653857,-500.0,0.0001219,2]
[348462827,1736538653867,-396.380051,0.0001219,2]
[348462828,1736538653877,-500.0,0.0001219,2]
[348462829,1736538653886,-500.0,0.0001219,2]
[348462830,1736538653896,-500.0,0.0001219,2]
[348462831,1736538653908,-500.0,0.0001219,2]
[348462832,1736538653920,-500.0,0.0001219,2]
[348462833,1736538653930,-500.0,0.0001219,2]
[348462834,1736538653940,-500.0,0.0001219,2]
[348462835,1736538653951,-1422.71,0.0001219,2]
[348462836,1736538653961,-500.0,0.0001219,2]
[348462837,1736538653972,-500.0,0.0001219,2]
[348462838,1736538653982,-500.0,0.0001219,2]
[348462839,1736538653992,-500.0,0.0001219,2]
[348462840,1736538654003,-1500.0,0.0001219,2]
[348462841,1736538654013,-500.0,0.0001219,2]
[348462842,1736538654022,-500.0,0.0001219,2]
[348462843,1736538654032,-500.0,0.0001219,2]
[348462844,1736538654043,-568.99,0.0001219,2]
[348462845,1736538654054,-500.0,0.0001219,2]
[348462846,1736538654064,-500.0,0.0001219,2]
[348462847,1736538654075,-500.0,0.0001219,2]
[348462848,1736538654091,-500.0,0.0001219,2]
[348462849,1736538654101,-500.0,0.0001219,2]
[348462850,1736538654111,-500.0,0.0001219,2]
[348462851,1736538654122,-500.0,0.0001219,2]
[348462852,1736538654133,-500.0,0.0001219,2]
[348462853,1736538654144,-500.0,0.0001219,2]
[348462854,1736538654153,-500.0,0.0001219,2]
[348462855,1736538654164,-500.0,0.0001219,2]
[348462856,1736538654174,-500.0,0.0001219,2]
[348462857,1736538654183,-500.0,0.0001219,2]
[348462858,1736538654193,-500.0,0.0001219,2]
[348462859,1736538654204,-500.0,0.0001219,2]
[348462860,1736538654215,-500.0,0.0001219,2]
[348462861,1736538654229,-541.44,0.0001219,2]
[348462862,1736538654239,-500.0,0.0001219,2]
[348462863,1736538654250,-500.0,0.0001219,2]
[348462864,1736538654260,-500.0,0.0001219,2]
[348462865,1736538654269,-500.0,0.0001219,2]
[348462866,1736538654280,-818.14,0.0001219,2]
[348462867,1736538654290,-500.0,0.0001219,2]
[348462868,1736538654300,-500.0,0.0001219,2]
[348462869,1736538654310,-370.41470752,0.0001219,2]
[348462870,1736538654320,-500.0,0.0001219,2]